bitfinex/quotes_BTCUSD_20220105
["timestamp","ask_amount","ask_price","bid_price","bid_amount"]
[1641412439529,0.54989,44742.0,44727.0,0.47614991]
[1641412439729,0.00126988,44740.0,44738.0,0.50498041]
[1641412439932,0.00115988,44740.0,44739.0,0.64708122]
[1641412440129,0.00124219,44748.0,44739.0,0.64708122]
[1641412440334,0.00124219,44748.0,44739.0,0.356084]
[1641412440335,0.00113219,44748.0,44739.0,0.356084]
[1641412440530,0.01212941,44750.0,44743.0,0.41979972]
[1641412440732,0.055874,44764.0,44744.0,0.88631696]
[1641412440733,0.05586961,44764.0,44744.0,0.88631696]
[1641412440930,0.60436767,44779.0,44752.0,0.00011]
[1641412441129,0.004,44779.0,44752.0,0.00011]
[1641412441328,0.004,44779.0,44744.0,0.05]
[1641412441329,0.00378,44749.0,44748.0,2.56099722]
[1641412441628,0.004,44759.0,44748.0,2.733139]
[1641412441828,0.004,44769.0,44753.0,2.27]
[1641412442029,0.00122615,44768.0,44761.0,0.14248601]
[1641412442232,0.00122615,44768.0,44756.0,0.14826542]
[1641412442430,0.00122615,44768.0,44757.0,0.217747]
[1641412442630,0.00122615,44768.0,44756.0,0.19826542]
[1641412442631,0.48553651,44764.0,44756.0,0.19826542]
[1641412442878,0.00122615,44768.0,44750.0,0.00011]
[1641412443080,0.00122615,44768.0,44756.0,0.13514182]
[1641412443282,0.00122615,44768.0,44753.0,0.29099722]
[1641412443283,0.00126062,44762.0,44753.0,0.29099722]
[1641412443478,0.00126062,44762.0,44750.0,0.00011]
[1641412443479,0.00124584,44754.0,44750.0,0.00011]
[1641412443678,0.0012275,44751.0,44750.0,0.00011]
[1641412444080,0.0012275,44751.0,44750.0,0.363249]
[1641412444479,0.0012275,44751.0,44750.0,0.00011]
[1641412444682,0.0012275,44751.0,44746.0,0.00011]
[1641412444885,0.0012275,44751.0,44717.0,1.25]
[1641412444886,2.16,44746.0,44717.0,1.25]
[1641412445184,2.16,44746.0,44711.0,0.004]
[1641412445185,0.00121513,44720.0,44711.0,0.004]
[1641412445380,0.07822,44743.0,44742.0,0.00011]
[1641412445578,0.24986641,44737.0,44713.0,1.1681802]
[1641412445779,0.00124739,44723.0,44711.0,0.004]
[1641412445982,0.14841936,44733.0,44711.0,0.004]
[1641412446183,0.00122833,44712.0,44711.0,0.004]
[1641412446628,0.00111833,44712.0,44711.0,0.004]
[1641412446827,0.22376034,44721.0,44695.0,0.86778166]
[1641412446828,0.42560263,44719.0,44710.0,0.4472978]
[1641412447030,0.00121738,44720.0,44710.0,0.62005928]
[1641412447228,0.00121738,44720.0,44710.0,0.17276148]
[1641412447229,0.00110738,44720.0,44710.0,0.17276148]
[1641412447427,0.363139,44719.0,44711.0,0.2919638]
[1641412447631,0.00099738,44720.0,44711.0,0.16392463]
[1641412447835,0.0825,44725.0,44711.0,0.16392463]
[1641412448028,0.08371044,44725.0,44712.0,1.04689225]
[1641412448229,0.08371044,44725.0,44712.0,1.48705908]
[1641412448230,0.0825,44725.0,44712.0,1.48705908]
[1641412448428,0.0825,44725.0,44724.0,1.1238573]
[1641412448731,0.0825,44725.0,44724.0,0.6422333]
[1641412448931,0.42440826,44752.0,44725.0,2.27]
[1641412449131,0.00123083,44741.0,44733.0,0.28612482]
[1641412449440,1.018312,44734.0,44733.0,0.00011]
[1641412449635,0.58275952,44734.0,44733.0,0.00011]
[1641412449829,0.468212,44734.0,44726.0,0.12746486]
[1641412450032,0.398212,44734.0,44726.0,0.12746486]
[1641412450286,0.398212,44734.0,44733.0,0.31475669]
[1641412450486,0.398212,44734.0,44733.0,1.49602028]
[1641412450487,0.148312,44734.0,44733.0,1.49602028]
[1641412450683,0.148312,44734.0,44733.0,1.85922128]
[1641412450883,0.148312,44734.0,44733.0,0.413201]
[1641412451082,0.148312,44734.0,44733.0,0.363201]
[1641412451282,0.148312,44734.0,44731.0,0.00011]
[1641412451484,0.363201,44733.0,44731.0,0.00011]
[1641412451685,3.06121777,44732.0,44731.0,0.00011]
[1641412451885,3.42441877,44732.0,44731.0,0.00011]
[1641412452086,0.09946,44727.0,44701.0,0.11296995]
[1641412452287,0.09946,44727.0,44702.0,0.54474763]
[1641412452487,3.42413749,44732.0,44706.0,0.15011]
[1641412452702,3.42413749,44732.0,44724.0,0.13015449]
[1641412452885,3.42413749,44732.0,44707.0,1.56296242]
[1641412453088,0.42645408,44725.0,44720.0,0.14283431]
[1641412453287,0.42645408,44725.0,44713.0,0.111787]
[1641412453686,0.42645408,44725.0,44709.0,0.00011]
[1641412453887,0.42645408,44725.0,44706.0,0.00011]
[1641412453888,0.08386689,44708.0,44702.0,0.00011]
[1641412454137,0.00126705,44702.0,44700.0,0.00031]
[1641412454342,0.00126705,44702.0,44695.0,0.00033]
[1641412454343,0.73,44700.0,44695.0,0.00011]
[1641412454539,0.73,44700.0,44685.0,0.00011]
[1641412454540,0.082511,44686.0,44685.0,0.00011]
[1641412454736,0.082291,44686.0,44685.0,0.00011]
[1641412454938,0.077291,44686.0,44683.0,0.00025608]
[1641412455137,0.45835549,44684.0,44683.0,0.00025608]
[1641412455337,0.1,44693.0,44683.0,0.00036608]
[1641412455541,0.89,44684.0,44683.0,0.00036608]
[1641412455742,1.290801,44684.0,44667.0,0.00011]
[1641412455940,0.00127562,44666.0,44656.0,0.00193769]
[1641412456140,0.00127562,44666.0,44645.0,0.0309154]
[1641412456141,0.00127416,44664.0,44645.0,0.0309154]
[1641412456339,0.00089158,44658.0,44653.0,0.45047922]
[1641412456538,3.06,44684.0,44657.0,0.214258]
[1641412456737,3.05989,44684.0,44683.0,0.00011]
[1641412456938,3.05989,44684.0,44679.0,0.00011]
[1641412456939,3.423224,44684.0,44679.0,0.00011]
[1641412457238,0.36436577,44680.0,44679.0,0.00011]
[1641412457437,0.36436577,44680.0,44644.0,0.009028]
[1641412457438,1.42989,44679.0,44655.0,0.00124182]
[1641412457640,0.363334,44678.0,44677.0,0.00011]
[1641412457882,1.99,44677.0,44676.0,0.00011]
[1641412458079,2.493361,44677.0,44645.0,0.0727387]
[1641412458286,0.09107678,44677.0,44666.0,0.0122293]
[1641412458579,0.09107678,44677.0,44666.0,0.0073393]
[1641412458580,1.85,44675.0,44666.0,0.0073393]
[1641412458779,0.17021881,44667.0,44666.0,0.0073393]
[1641412458981,0.53482754,44667.0,44666.0,0.0073393]
[1641412459183,0.0768,44665.0,44645.0,0.0258054]
[1641412459383,0.00125677,44648.0,44645.0,0.0258054]
[1641412459585,0.363335,44646.0,44645.0,0.0258054]
[1641412459782,0.78448773,44646.0,44645.0,0.0258054]
[1641412459984,0.78437773,44646.0,44645.0,0.0258054]
[1641412460181,0.35937773,44646.0,44645.0,0.0258054]
[1641412460380,0.05077417,44651.0,44645.0,0.66805736]
[1641412460582,0.0012293,44655.0,44645.0,0.3692264]
[1641412460785,0.0012293,44655.0,44645.0,0.0058054]
[1641412460982,0.0012293,44655.0,44647.0,0.39687816]
[1641412460983,0.05600846,44653.0,44647.0,0.39687816]
[1641412461182,0.0012293,44655.0,44647.0,0.39687816]
[1641412461382,0.0011193,44655.0,44647.0,0.39687816]
[1641412461635,0.0765,44650.0,44647.0,0.44687816]
[1641412461831,0.0011193,44655.0,44647.0,0.39687816]
[1641412462034,0.00127732,44654.0,44647.0,0.39687816]
[1641412462232,0.00116732,44654.0,44646.0,0.00107914]
[1641412462437,0.363299,44653.0,44637.0,0.001363]
[1641412462633,0.00116732,44654.0,44631.0,0.14422]
[1641412462634,0.00116732,44654.0,44631.0,0.11728136]
[1641412462835,0.00105732,44654.0,44642.0,0.15629329]
[1641412463036,0.2499,44667.0,44649.0,0.00121426]
[1641412463233,0.70042895,44689.0,44649.0,0.00121426]
[1641412463234,0.00122644,44673.0,44664.0,0.00011]
[1641412463437,0.00122644,44673.0,44646.0,3.42482084]
[1641412463438,0.00122644,44673.0,44657.0,0.00129777]
[1641412463635,0.00122644,44673.0,44663.0,0.00011]
[1641412463833,0.00122644,44673.0,44663.0,0.1307388]
[1641412464035,0.00122644,44673.0,44663.0,0.1057388]
[1641412464233,0.00122644,44673.0,44667.0,0.39970334]
[1641412464433,0.00122644,44673.0,44668.0,0.218618]
[1641412464834,0.05597278,44686.0,44668.0,0.218618]
[1641412464837,0.05597278,44686.0,44672.0,0.14867842]
[1641412465038,0.004,44689.0,44684.0,0.2578881]
[1641412465288,0.0012738,44685.0,44672.0,0.19867842]
[1641412465482,0.0012738,44685.0,44673.0,0.363354]
[1641412465684,0.0012738,44685.0,44673.0,0.64718496]
[1641412465880,0.0012738,44685.0,44681.0,0.15043603]
[1641412466085,0.004,44689.0,44681.0,0.15043603]
[1641412466086,0.004,44689.0,44683.0,0.26926133]
[1641412466383,0.004,44689.0,44684.0,0.358259]
[1641412466580,0.004,44689.0,44684.0,0.80332472]
[1641412466781,0.00028847,44693.0,44684.0,0.80332472]
[1641412466981,0.00028847,44693.0,44685.0,0.28383096]
[1641412467282,0.00092593,44697.0,44686.0,0.158545]
[1641412467481,0.0003281,44694.0,44687.0,0.26410051]
[1641412467681,0.0003281,44694.0,44688.0,0.363305]
[1641412467880,0.0003281,44694.0,44689.0,0.26197528]
[1641412468081,0.0003281,44694.0,44679.0,0.00023151]
[1641412468082,0.09859826,44688.0,44679.0,0.00023151]
[1641412468283,0.00121455,44681.0,44679.0,0.00023151]
[1641412468482,0.09966849,44668.0,44664.0,0.0012181]
[1641412468686,0.00121455,44681.0,44664.0,0.0012181]
[1641412468882,0.00121455,44681.0,44670.0,0.16954841]
[1641412469135,0.09859826,44688.0,44672.0,0.17723895]
[1641412469136,0.36062518,44673.0,44672.0,0.17723895]
[1641412469537,0.00029878,44683.0,44664.0,0.0012181]
[1641412469743,0.00090715,44680.0,44662.0,0.46630859]
[1641412469938,0.00029878,44683.0,44664.0,0.28105898]
[1641412470139,0.00092847,44685.0,44665.0,0.153774]
[1641412470345,0.09859826,44688.0,44670.0,0.00128755]
[1641412470638,0.09859826,44688.0,44686.0,0.47047548]
[1641412471439,0.0122291,44698.0,44686.0,0.47047548]
[1641412471440,0.0122291,44698.0,44690.0,0.153467]
[1641412471441,0.00759223,44698.0,44690.0,0.153467]
[1641412471639,0.83807052,44702.0,44695.0,2.27]
[1641412471838,0.00032826,44708.0,44705.0,0.38172991]
[1641412472039,0.40743808,44714.0,44691.0,0.29702743]
[1641412472238,0.095,44712.0,44695.0,0.05]
[1641412472437,0.095,44712.0,44690.0,0.05121347]
[1641412472438,0.0912338,44712.0,44690.0,0.05121347]
[1641412472640,0.00121405,44710.0,44690.0,0.00121347]
[1641412472896,0.00127777,44709.0,44700.0,0.14407178]
[1641412473097,0.04334785,44712.0,44700.0,0.32658571]
[1641412473296,0.04334785,44712.0,44701.0,0.153294]
[1641412473896,0.04334785,44712.0,44701.0,0.42617408]
[1641412474094,0.04334785,44712.0,44711.0,1.87429828]
[1641412474302,0.04334785,44712.0,44711.0,2.02754928]
[1641412474698,0.004,44719.0,44712.0,2.2685]
[1641412474897,0.0001,44719.0,44716.0,0.153227]
[1641412475096,0.004,44729.0,44717.0,0.06988562]
[1641412475398,0.004,44729.0,44727.0,0.15930017]
[1641412475595,0.004,44729.0,44727.0,0.25930017]
[1641412475796,0.60036767,44733.0,44727.0,0.25930017]
[1641412475797,0.60036767,44733.0,44728.0,2.27]
[1641412476098,0.30600835,44744.0,44727.0,0.20930017]
[1641412476294,0.30600835,44744.0,44727.0,0.05]
[1641412476542,0.30600835,44744.0,44720.0,0.111771]
[1641412476543,0.00129486,44740.0,44720.0,0.05]
[1641412476740,0.00129486,44740.0,44719.0,0.32288008]
[1641412477139,0.00129486,44740.0,44726.0,0.14978995]
[1641412477340,1.1988445,44726.0,44716.0,0.00125975]
[1641412477540,1.1988445,44726.0,44709.0,0.0999]
[1641412477541,0.00129177,44722.0,44709.0,0.0999]
[1641412477740,0.00129177,44722.0,44700.0,0.01217925]
[1641412477741,0.00129948,44710.0,44700.0,0.01217925]
[1641412478140,0.30320467,44708.0,44700.0,0.01217925]
[1641412478338,0.30320467,44708.0,44681.0,0.004]
[1641412478339,1.157,44706.0,44695.0,0.12894232]
[1641412478540,0.363259,44705.0,44701.0,0.00019315]
[1641412478939,0.00127761,44702.0,44701.0,0.00044935]
[1641412479144,0.00127761,44702.0,44701.0,1.36044935]
[1641412479340,1.16741502,44726.0,44713.0,0.16190366]
[1641412479341,0.1413404,44722.0,44713.0,0.16190366]
[1641412479541,0.419181,44721.0,44703.0,0.27288008]
[1641412479742,0.00121026,44719.0,44701.0,0.00044935]
[1641412479941,0.00125121,44712.0,44701.0,0.00044935]
[1641412480143,0.40360071,44710.0,44701.0,0.00044935]
[1641412480387,0.11186819,44715.0,44701.0,0.00044935]
[1641412480388,0.45260201,44702.0,44701.0,0.00044935]
[1641412480589,0.00122751,44703.0,44701.0,0.00044935]
[1641412480787,0.0999,44706.0,44701.0,0.00044935]
[1641412480986,0.00121295,44711.0,44701.0,0.00044935]
[1641412481188,0.111869,44716.0,44701.0,0.00044935]
[1641412481191,0.00122575,44720.0,44708.0,0.16462417]
[1641412481389,0.111854,44723.0,44708.0,0.16462417]
[1641412481390,0.00129188,44723.0,44708.0,0.16462417]
[1641412481691,0.00129188,44723.0,44716.0,0.17473306]
[1641412482087,0.111814,44738.0,44716.0,0.22473306]
[1641412482288,0.00124718,44732.0,44725.0,0.153805]
[1641412482490,0.00522199,44739.0,44725.0,0.195459]
[1641412482687,0.00522199,44739.0,44726.0,0.27551686]
[1641412482888,0.004,44739.0,44733.0,0.12972578]
[1641412483088,0.004,44739.0,44727.0,0.43771774]
[1641412483387,0.004,44739.0,44728.0,0.2957876]
[1641412483588,0.004,44739.0,44729.0,0.2]
[1641412483788,0.004,44739.0,44732.0,0.001271]
[1641412484037,0.004,44739.0,44733.0,0.15455943]
[1641412484241,0.004,44749.0,44744.0,0.0959]
[1641412484439,0.004,44749.0,44745.0,0.16270451]
[1641412484837,0.004,44749.0,44746.0,0.28164016]
[1641412485040,0.9913,44756.0,44747.0,1.0]
[1641412485239,0.59823616,44761.0,44755.0,1.16]
[1641412485240,0.40223616,44761.0,44755.0,1.16]
[1641412485441,0.40223616,44761.0,44756.0,0.29052376]
[1641412485640,0.40223616,44761.0,44751.0,0.00122344]
[1641412485840,0.363259,44760.0,44751.0,0.00122344]
[1641412486041,0.00126903,44748.0,44726.0,0.00129959]
[1641412486440,0.00126903,44748.0,44726.0,0.05717759]
[1641412486641,0.055874,44760.0,44744.0,0.40517111]
[1641412486842,0.0012273,44755.0,44744.0,0.55100547]
[1641412487541,0.0012273,44755.0,44746.0,0.26454165]
[1641412487789,0.49955679,44763.0,44749.0,0.18103876]
[1641412487982,0.49955679,44763.0,44751.0,0.14856544]
[1641412488182,0.00128997,44761.0,44751.0,0.05]
[1641412488381,0.00128997,44761.0,44735.0,0.30025572]
[1641412488382,0.00128997,44761.0,44743.0,0.00120154]
[1641412488781,0.00128997,44761.0,44752.0,0.45125519]
[1641412489181,0.00128997,44761.0,44752.0,0.66878434]
[1641412489385,0.16463038,44768.0,44752.0,0.66878434]
[1641412489386,0.00128342,44767.0,44752.0,0.66878434]
[1641412489780,0.00128342,44767.0,44752.0,0.61878434]
[1641412489981,0.00128342,44767.0,44744.0,0.00015045]
[1641412490986,0.00128342,44767.0,44755.0,0.14647379]
[1641412491184,0.424,44769.0,44755.0,0.14647379]
[1641412491401,0.424,44769.0,44757.0,0.00121709]
[1641412492038,0.424,44769.0,44766.0,0.46566315]
[1641412492435,0.409,44769.0,44766.0,0.51566315]
[1641412492635,0.00526021,44779.0,44766.0,0.05]
[1641412492837,0.00526021,44779.0,44765.0,0.27514586]
[1641412493037,0.00526021,44779.0,44757.0,0.00121709]
[1641412493236,0.00526021,44779.0,44769.0,0.05]
[1641412493439,0.363259,44778.0,44757.0,0.00121709]
[1641412493737,0.00526021,44779.0,44762.0,0.48607214]
[1641412494036,0.00526021,44779.0,44767.0,0.14122862]
[1641412494236,0.00526021,44779.0,44768.0,0.26168144]
[1641412494436,0.00526021,44779.0,44762.0,0.61753806]
[1641412494437,0.00526021,44779.0,44763.0,0.35020053]
[1641412494638,0.45058437,44776.0,44768.0,0.05]
[1641412494847,0.00120566,44774.0,44762.0,0.48481376]
[1641412495038,0.00125377,44774.0,44762.0,0.48481376]
[1641412495295,0.46603009,44769.0,44756.0,0.0012167]
[1641412495497,0.00127757,44767.0,44745.0,0.00025266]
[1641412495699,0.00129703,44755.0,44745.0,0.00025266]
[1641412496296,0.44682239,44761.0,44751.0,0.48330175]
[1641412496598,0.0012788,44759.0,44751.0,0.48330175]
[1641412496995,0.0012788,44759.0,44752.0,0.27392014]
[1641412497198,0.83929605,44768.0,44752.0,0.27392014]
[1641412497595,0.42122553,44768.0,44752.0,0.27392014]
[1641412497794,0.36187527,44762.0,44755.0,0.15251371]
[1641412498000,0.42122553,44768.0,44755.0,0.20251371]
[1641412498197,0.42122553,44768.0,44756.0,0.26108705]
[1641412498603,0.60201551,44778.0,44766.0,0.00123391]
[1641412498798,0.004,44779.0,44771.0,0.00128333]
[1641412499030,0.60201551,44782.0,44780.0,0.50245784]
[1641412499232,0.49701551,44782.0,44781.0,2.29899412]
[1641412499430,0.49701551,44782.0,44781.0,2.34899412]
[1641412499633,0.70042895,44784.0,44781.0,0.05120541]
[1641412499835,0.70042895,44784.0,44781.0,0.00120541]
[1641412500037,0.0012892,44791.0,44779.0,0.00012502]
[1641412500433,1.157,44796.0,44779.0,0.00012502]
[1641412500635,0.16212768,44787.0,44779.0,0.00012502]
[1641412500832,2.43443412,44780.0,44779.0,0.00012502]
[1641412501034,1.59,44779.0,44746.0,0.35687653]
[1641412501235,0.05585343,44771.0,44749.0,0.05]
[1641412501435,0.05585343,44771.0,44747.0,0.2725233]
[1641412501438,0.00123172,44769.0,44752.0,0.00127915]
[1641412501633,0.00123172,44769.0,44754.0,0.2]
[1641412501833,0.00123172,44769.0,44763.0,0.47773511]
[1641412502035,0.055842,44784.0,44764.0,0.45631665]
[1641412502235,0.004,44789.0,44769.0,0.00127189]
[1641412502437,0.05583647,44783.0,44769.0,0.00127189]
[1641412502786,0.05583647,44783.0,44768.0,0.00129536]
[1641412502985,0.02621384,44780.0,44777.0,0.17706203]
[1641412503185,0.02621384,44780.0,44778.0,0.28052025]
[1641412503384,0.02621384,44780.0,44779.0,0.00129665]
[1641412503685,0.004,44789.0,44779.0,2.27129665]
[1641412503887,0.17414307,44798.0,44792.0,0.00127095]
[1641412504091,0.17414307,44798.0,44785.0,0.00121967]
[1641412504092,0.469721,44798.0,44785.0,0.00121967]
[1641412504285,0.363259,44797.0,44781.0,0.2705591]
[1641412504484,0.363259,44797.0,44779.0,0.00129665]
[1641412504485,0.16749578,44796.0,44779.0,0.00129665]
[1641412504684,0.4139,44798.0,44779.0,0.00129665]
[1641412504685,0.358259,44795.0,44779.0,0.00129665]
[1641412504886,0.4139,44798.0,44779.0,0.00129665]
[1641412505088,0.40717174,44793.0,44791.0,0.00122345]
[1641412505284,0.40717174,44793.0,44752.0,0.00826014]
[1641412505285,0.363243,44792.0,44779.0,0.00128461]
[1641412505487,0.40278023,44793.0,44769.0,0.055827]
[1641412505684,0.40278023,44793.0,44774.0,0.00120181]
[1641412505886,0.00124948,44791.0,44774.0,0.00120181]
[1641412506087,0.39502971,44793.0,44776.0,0.13154653]
[1641412506288,0.11166138,44789.0,44776.0,0.13154653]
[1641412506543,0.11166138,44789.0,44779.0,0.00123909]
[1641412506932,1.16809026,44805.0,44779.0,0.00123909]
[1641412506933,0.4139,44798.0,44779.0,0.00123909]
[1641412507133,0.4139,44798.0,44788.0,0.14872416]
[1641412507333,0.4139,44798.0,44791.0,0.00121782]
[1641412507535,0.469721,44798.0,44785.0,0.00122535]
[1641412507737,0.4139,44798.0,44785.0,0.00122535]
[1641412507931,0.4139,44798.0,44791.0,0.46605463]
[1641412508136,0.4139,44798.0,44792.0,0.00126441]
[1641412508332,0.4139,44798.0,44792.0,0.00136492]
[1641412508933,0.4139,44798.0,44795.0,0.16517982]
[1641412509334,0.4139,44798.0,44797.0,0.00123239]
[1641412509737,0.369209,44802.0,44797.0,0.00123239]
[1641412509936,0.06835557,44811.0,44801.0,0.10615478]
[1641412510159,0.90472293,44829.0,44801.0,0.10615478]
[1641412510160,0.14691889,44820.0,44810.0,0.00123598]
[1641412510393,0.90472293,44829.0,44821.0,0.04632367]
[1641412510394,0.4139,44823.0,44821.0,0.04632367]
[1641412510592,0.90472293,44829.0,44822.0,0.00128259]
[1641412510593,0.81314693,44825.0,44822.0,0.00128259]
[1641412510791,0.41264438,44823.0,44822.0,0.00128259]
[1641412510989,0.81314693,44825.0,44821.0,0.04632367]
[1641412511290,0.81314693,44825.0,44824.0,0.00127735]
[1641412511493,0.81314693,44825.0,44821.0,0.04632367]
[1641412511494,1.17638993,44825.0,44821.0,0.04632367]
[1641412511692,0.363243,44824.0,44821.0,0.04632367]
[1641412511893,0.004,44829.0,44821.0,0.04632367]
[1641412512293,0.004,44829.0,44827.0,0.00121266]
[1641412512490,0.004,44829.0,44828.0,0.00128794]
[1641412512691,0.004,44829.0,44821.0,0.04632367]
[1641412512893,0.363243,44828.0,44821.0,0.04632367]
[1641412513094,0.111566,44834.0,44821.0,0.04576867]
[1641412513291,0.00129376,44830.0,44821.0,0.04576867]
[1641412513493,0.00129376,44830.0,44821.0,0.20237138]
[1641412513494,0.363221,44829.0,44821.0,0.20237138]
[1641412513793,0.363221,44829.0,44824.0,0.00128282]
[1641412513794,0.05577617,44829.0,44824.0,0.00128282]
[1641412514043,1.12917966,44837.0,44824.0,0.00128282]
[1641412514235,0.363221,44836.0,44824.0,0.00128282]
[1641412514435,0.363221,44835.0,44829.0,0.00126939]
[1641412514638,1.12917966,44837.0,44834.0,0.00122377]
[1641412514836,0.72179471,44837.0,44836.0,0.00123143]
[1641412515036,0.5139,44840.0,44836.0,0.00123143]
[1641412515236,0.363221,44838.0,44836.0,3.143e-05]
[1641412515438,0.363221,44838.0,44828.0,0.43345763]
[1641412515638,0.363221,44838.0,44828.0,0.14957531]
[1641412515639,0.42918384,44837.0,44828.0,0.14957531]
[1641412515836,0.363221,44836.0,44821.0,0.04576867]
[1641412516037,0.36442235,44836.0,44821.0,0.04576867]
[1641412516236,0.36442235,44836.0,44816.0,0.50422862]
[1641412516237,0.00128464,44829.0,44816.0,0.2334]
[1641412516438,0.05,44835.0,44816.0,0.2334]
[1641412516737,0.26711326,44836.0,44816.0,0.2334]
[1641412516738,0.055796,44818.0,44816.0,0.2334]
[1641412517136,0.00120111,44837.0,44817.0,0.363221]
[1641412517338,0.00125002,44831.0,44816.0,0.00127767]
[1641412517536,0.363221,44830.0,44810.0,0.24865683]
[1641412517786,0.45840305,44828.0,44819.0,0.27553095]
[1641412518088,0.45780305,44828.0,44821.0,0.05567]
[1641412518288,0.00126888,44825.0,44821.0,0.05567]
[1641412518486,0.363221,44822.0,44789.0,0.24415277]
[1641412518687,1.87803076,44834.0,44804.0,0.00120488]
[1641412518886,1.87803076,44834.0,44793.0,0.400821]
[1641412518887,0.363221,44833.0,44812.0,2e-06]
[1641412519088,0.0012025,44826.0,44822.0,4.7e-06]
[1641412519288,0.0012025,44826.0,44789.0,0.27225801]
[1641412519289,0.00125986,44810.0,44789.0,0.27225801]
[1641412519489,0.11162789,44805.0,44793.0,0.17006707]
[1641412519691,0.167442,44814.0,44783.0,0.0999]
[1641412519692,0.43940953,44804.0,44783.0,0.0999]
[1641412519887,0.00123118,44801.0,44783.0,0.0999]
[1641412520088,0.055832,44795.0,44781.0,0.004]
[1641412520288,0.05528,44788.0,44781.0,0.004]
[1641412520487,0.111669,44789.0,44781.0,0.004]
[1641412520691,0.07748126,44789.0,44781.0,0.004]
[1641412520888,0.49752899,44783.0,44781.0,0.004]
[1641412521089,1.843221,44782.0,44781.0,0.004]
[1641412521292,1.84442502,44782.0,44781.0,0.004]
[1641412521936,2.00350806,44782.0,44781.0,0.004]
[1641412522137,0.00343242,44781.0,44765.0,0.00011]
[1641412522340,0.05584732,44776.0,44765.0,0.00011]
[1641412522537,0.00121033,44774.0,44765.0,0.00011]
[1641412522739,0.004,44771.0,44765.0,0.00011]
[1641412522938,0.00128373,44766.0,44765.0,0.00011]
[1641412523140,0.84238634,44766.0,44764.0,0.00011]
[1641412523343,0.84238634,44766.0,44763.0,0.00011]
[1641412523344,0.05587971,44758.0,44750.0,0.00011]
[1641412523541,0.00120122,44752.0,44750.0,0.00011]
[1641412523738,0.00120122,44752.0,44749.0,3e-05]
[1641412523739,2.633221,44750.0,44749.0,3e-05]
[1641412523939,1.14123022,44749.0,44742.0,0.00011]
[1641412524138,1.14123022,44749.0,44742.0,0.35351581]
[1641412524139,1.50445122,44749.0,44742.0,0.35351581]
[1641412524340,0.36445122,44749.0,44742.0,0.35351581]
[1641412524540,0.00123022,44749.0,44742.0,0.35351581]
[1641412524738,0.167642,44760.0,44742.0,0.35351581]
[1641412524739,0.2499,44769.0,44742.0,0.35351581]
[1641412524942,0.00126639,44755.0,44742.0,0.35351581]
[1641412525287,0.00126639,44755.0,44745.0,0.00011]
[1641412525288,0.05714039,44755.0,44745.0,0.00011]
[1641412525491,0.0012441,44750.0,44745.0,0.00011]
[1641412525789,2.033221,44749.0,44745.0,0.00011]
[1641412525993,2.453221,44749.0,44745.0,0.00011]
[1641412526190,2.87085644,44749.0,44745.0,0.00011]
[1641412526590,1.11989,44748.0,44745.0,0.00011]
[1641412526791,0.37435451,44748.0,44745.0,0.00011]
[1641412527291,0.36761683,44748.0,44745.0,0.00036567]
[1641412527991,0.00313351,44748.0,44746.0,0.35638422]
[1641412528190,0.00313351,44748.0,44747.0,0.66011394]
[1641412528390,0.01212944,44754.0,44748.0,2.47]
[1641412528593,0.01212944,44754.0,44752.0,0.105747]
[1641412528790,0.00127381,44766.0,44753.0,2.633168]
[1641412529037,0.00127381,44766.0,44762.0,0.27554071]
[1641412529231,0.00127381,44766.0,44757.0,0.39766117]
[1641412529432,0.00127381,44766.0,44758.0,0.363221]
[1641412529632,0.00127381,44766.0,44757.0,0.44766117]
[1641412530032,0.00127381,44766.0,44763.0,0.00012137]
[1641412530234,0.44493342,44764.0,44763.0,0.00012137]
[1641412530433,0.80815442,44764.0,44763.0,0.00012137]
[1641412530633,2.633221,44764.0,44747.0,0.00011]
[1641412530833,0.363221,44763.0,44747.0,0.00011]
[1641412531033,0.363221,44762.0,44747.0,0.00011]
[1641412531535,1.7828731,44777.0,44747.0,0.00011]
[1641412531536,0.00128611,44758.0,44747.0,0.00011]
[1641412531734,0.00124557,44761.0,44748.0,0.363221]
[1641412531933,0.00124557,44761.0,44747.0,0.00011]
[1641412531934,0.1129858,44761.0,44747.0,0.00011]
[1641412532134,0.363221,44760.0,44747.0,0.00011]
[1641412532332,0.1129858,44761.0,44747.0,0.00011]
[1641412532784,0.44803923,44752.0,44747.0,0.00011]
[1641412533386,0.05587419,44753.0,44747.0,0.00011]
[1641412533985,0.1117436,44757.0,44748.0,0.363221]
[1641412534186,0.1117436,44757.0,44747.0,0.00011]
[1641412534387,0.11175626,44755.0,44747.0,0.00011]
[1641412534686,0.05709124,44759.0,44747.0,0.00011]
[1641412534687,0.111755,44758.0,44747.0,0.00011]
[1641412534886,0.05708824,44759.0,44752.0,0.13840904]
[1641412535189,0.00121524,44759.0,44747.0,0.00011]
[1641412535387,0.00121524,44759.0,44748.0,0.363221]
[1641412535587,0.00121524,44759.0,44751.0,0.40367072]
[1641412535989,0.00121524,44759.0,44752.0,0.363221]
[1641412536635,0.05587498,44756.0,44751.0,0.40367072]
[1641412536833,0.05587498,44756.0,44752.0,0.363221]
[1641412537036,0.00124206,44753.0,44747.0,0.00011]
[1641412537836,0.49528495,44751.0,44747.0,0.00011]
[1641412538041,0.49528495,44751.0,44744.0,0.00011]
[1641412538042,2.373221,44747.0,44744.0,0.00011]
[1641412538238,2.373221,44747.0,44744.0,2.82e-06]
[1641412538239,0.363221,44745.0,44744.0,2.82e-06]
[1641412538436,0.00124749,44746.0,44733.0,0.00011]
[1641412538437,2.325906,44739.0,44733.0,0.00011]
[1641412538743,2.325906,44739.0,44732.0,0.00011]
[1641412538744,0.363221,44737.0,44732.0,0.00011]
[1641412538939,0.41913608,44733.0,44732.0,0.00011]
[1641412539135,0.41913608,44733.0,44723.0,0.00022]
[1641412539136,0.055918,44729.0,44723.0,0.00022]
[1641412539335,2.433221,44732.0,44723.0,0.00022]
[1641412539336,0.4702138,44727.0,44723.0,0.00022]
[1641412539536,0.363221,44726.0,44723.0,0.00022]
[1641412539936,0.5261298,44727.0,44720.0,0.00033]
[1641412539937,2.633221,44724.0,44720.0,0.00033]
[1641412540138,0.11185588,44721.0,44717.0,0.00011]
[1641412540391,0.363221,44720.0,44717.0,0.00011]
[1641412540593,0.00128075,44718.0,44717.0,0.00011]
[1641412540788,0.055928,44723.0,44717.0,0.00011]
[1641412540789,0.0999,44740.0,44717.0,0.00011]
[1641412540984,0.05590018,44732.0,44725.0,0.00014575]